fUSD/lending_fUSD_20260506
["ID","MTS","AMOUNT","RATE_DAILY","PERIOD"]
[421713971,1778053125000,-1407.10316565,0.000119,2]
[421713972,1778053126000,-1407.10316565,0.000119,2]
[421713976,1778053127000,-173.6559903,0.000119,2]
[421713975,1778053127000,-19005.0,0.000119,2]
[421713974,1778053127000,160.0,0.0003,120]
[421713973,1778053127000,-1407.10316565,0.000119,2]
[421713977,1778053128000,-173.6559903,0.000119,2]
[421713979,1778053128000,-173.6559903,0.000119,2]
[421713978,1778053128000,-173.6559903,0.000119,2]
[421713980,1778053129000,-173.6559903,0.000119,2]
[421713981,1778053206000,-2308.6815859,0.000119,2]
[421713982,1778053217000,-2308.6815859,0.00012012,2]
[421713985,1778053218000,-2308.6815859,0.00012012,2]
[421713984,1778053218000,-2308.6815859,0.00012012,2]
[421713983,1778053218000,465.254278,0.00022148,120]
[421713987,1778053219000,819.195907,0.0002242,120]
[421713988,1778053219000,-2308.6815859,0.00012012,2]
[421713986,1778053219000,-2308.6815859,0.00012012,2]
[421713989,1778053220000,-2308.6815859,0.00012012,2]
[421713998,1778053221000,-500.0,0.000122,2]
[421713999,1778053221000,-151.0,0.000122,2]
[421713993,1778053221000,-4553.90762845,0.00012012,2]
[421713992,1778053221000,-300.0,0.00012011,2]
[421713994,1778053221000,-500.0,0.000122,2]
[421713990,1778053221000,-1433.172714,0.0001184,2]
[421713991,1778053221000,-1200.0,0.00012011,2]
[421713996,1778053221000,-500.0,0.000122,2]
[421713997,1778053221000,-151.0,0.000122,2]
[421714000,1778053221000,-500.0,0.000122,2]
[421714001,1778053221000,-59.92965755,0.000122,2]
[421713995,1778053221000,-151.0,0.000122,2]
[421714002,1778053237000,-91.07034245,0.000122,2]
[421714003,1778053530000,-617.23851826,0.00012004,2]
[421714006,1778053585000,-4635.45006138,0.00012156,2]
[421714004,1778053585000,-190.89394834,0.00012004,2]
[421714005,1778053585000,-173.65599028,0.00012146,2]
[421714011,1778053785000,-300.0,0.00012144,2]
[421714013,1778053790000,220.67,6.745e-05,2]
[421714012,1778053790000,269.33,6.407e-05,2]
[421714014,1778053790000,48.66,6.745e-05,2]
[421714017,1778053790000,97.32,7.419e-05,2]
[421714016,1778053790000,172.01,7.419e-05,2]
[421714018,1778053790000,269.33,7.756e-05,2]
[421714015,1778053790000,269.33,7.082e-05,2]
[421714024,1778053791000,269.33,9.442e-05,2]
[421714023,1778053791000,269.33,9.105e-05,2]
[421714022,1778053791000,269.33,8.768e-05,2]
[421714021,1778053791000,269.33,8.431e-05,2]
[421714020,1778053791000,170.55310267,8.094e-05,2]
[421714019,1778053791000,98.77689733,8.094e-05,2]
[421714025,1778053792000,269.33,9.78e-05,2]
[421714027,1778053792000,269.33,0.00010454,2]
[421714026,1778053792000,269.33,0.00010117,2]
[421714028,1778053807000,159.77,9.322e-05,2]
[421714038,1778053831000,-172.1096658,0.00012145,2]
[421714030,1778053831000,-269.33,0.00011129,2]
[421714029,1778053831000,-269.33,0.00010791,2]
[421714031,1778053831000,-269.33,0.00011466,2]
[421714034,1778053831000,-269.33,0.0001214,2]
[421714033,1778053831000,-269.33,0.00011803,2]
[421714035,1778053831000,-150.0,0.00012144,2]
[421714036,1778053831000,-1200.0,0.00012144,2]
[421714037,1778053831000,-67448.8248,0.00012145,2]
[421714032,1778053831000,-3441.76,0.00011632,2]
[421714040,1778053831000,-5695.54189348,0.00012156,2]
[421714042,1778053831000,-153.12137068,0.00012195,2]
[421714043,1778053831000,-200.97265253,0.00012199,2]
[421714041,1778053831000,-6962.41683547,0.00012156,2]
[421714044,1778053831000,-200.0,0.00012228,2]
[421714045,1778053831000,-500.0,0.00012228,2]
[421714046,1778053831000,-500.0,0.00012228,2]
[421714048,1778053831000,-500.0,0.00012228,2]
[421714047,1778053831000,-151.0,0.00012228,2]
[421714049,1778053831000,-151.0,0.00012228,2]
[421714039,1778053831000,-10393.24760967,0.00012156,2]
[421714100,1778053832000,-500.0,0.00012228,2]
[421714098,1778053832000,-500.0,0.00012228,2]
[421714092,1778053832000,-151.0,0.00012228,2]
[421714095,1778053832000,-151.0,0.00012228,2]
[421714094,1778053832000,-151.0,0.00012228,2]
[421714091,1778053832000,-151.0,0.00012228,2]
[421714113,1778053832000,-500.0,0.00012255,2]
[421714097,1778053832000,-500.0,0.00012228,2]
[421714090,1778053832000,-151.0,0.00012228,2]
[421714089,1778053832000,-151.0,0.00012228,2]
[421714088,1778053832000,-151.0,0.00012228,2]
[421714093,1778053832000,-151.0,0.00012228,2]
[421714099,1778053832000,-500.0,0.00012228,2]
[421714103,1778053832000,-500.0,0.00012228,2]
[421714101,1778053832000,-500.0,0.00012228,2]
[421714102,1778053832000,-500.0,0.00012228,2]
[421714104,1778053832000,-500.0,0.00012228,2]
[421714105,1778053832000,-500.0,0.00012228,2]
[421714109,1778053832000,-3678.0062,0.00012245,2]
[421714106,1778053832000,-500.0,0.00012228,2]
[421714108,1778053832000,-999.99,0.00012228,2]
[421714107,1778053832000,-2080.17592889,0.00012228,2]
[421714110,1778053832000,-2000.0,0.00012246,2]
[421714111,1778053832000,-12005.00011213,0.0001225,2]
[421714112,1778053832000,-42083.51665521,0.0001225,2]
[421714083,1778053832000,-151.0,0.00012228,2]
[421714096,1778053832000,-500.0,0.00012228,2]
[421714084,1778053832000,-151.0,0.00012228,2]
[421714065,1778053832000,-500.0,0.00012228,2]
[421714087,1778053832000,-151.0,0.00012228,2]
[421714114,1778053832000,-500.0,0.00012255,2]
[421714057,1778053832000,-151.0,0.00012228,2]
[421714059,1778053832000,-151.0,0.00012228,2]
[421714061,1778053832000,-500.0,0.00012228,2]
[421714055,1778053832000,-500.0,0.00012228,2]
[421714050,1778053832000,-500.0,0.00012228,2]
[421714051,1778053832000,-151.0,0.00012228,2]
[421714053,1778053832000,-151.0,0.00012228,2]
[421714052,1778053832000,-500.0,0.00012228,2]
[421714075,1778053832000,-151.0,0.00012228,2]
[421714074,1778053832000,-151.0,0.00012228,2]
[421714076,1778053832000,-500.0,0.00012228,2]
[421714082,1778053832000,-151.0,0.00012228,2]
[421714063,1778053832000,-151.0,0.00012228,2]
[421714068,1778053832000,-151.0,0.00012228,2]
[421714077,1778053832000,-151.0,0.00012228,2]
[421714067,1778053832000,-151.0,0.00012228,2]
[421714070,1778053832000,-500.0,0.00012228,2]
[421714071,1778053832000,-151.0,0.00012228,2]
[421714072,1778053832000,-151.0,0.00012228,2]
[421714078,1778053832000,-151.0,0.00012228,2]
[421714080,1778053832000,-151.0,0.00012228,2]
[421714081,1778053832000,-151.0,0.00012228,2]
[421714085,1778053832000,-151.0,0.00012228,2]
[421714079,1778053832000,-500.0,0.00012228,2]
[421714086,1778053832000,-151.0,0.00012228,2]
[421714073,1778053832000,-500.0,0.00012228,2]
[421714120,1778053832000,-500.0,0.00012255,2]
[421714151,1778053832000,-500.0,0.00012255,2]
[421714117,1778053832000,-500.0,0.00012255,2]
[421714143,1778053832000,-500.0,0.00012255,2]
[421714149,1778053832000,-500.0,0.00012255,2]
[421714159,1778053832000,-543.46188568,0.00012255,2]
[421714160,1778053832000,-543.46188568,0.00012255,2]
[421714150,1778053832000,-500.0,0.00012255,2]
[421714154,1778053832000,-500.0,0.00012255,2]
[421714155,1778053832000,-500.0,0.00012255,2]
[421714153,1778053832000,-500.0,0.00012255,2]
[421714157,1778053832000,-543.46188568,0.00012255,2]
[421714152,1778053832000,-500.0,0.00012255,2]
[421714158,1778053832000,-543.46188568,0.00012255,2]
[421714161,1778053832000,-543.46188568,0.00012255,2]
[421714142,1778053832000,-500.0,0.00012255,2]
[421714162,1778053832000,-543.46188568,0.00012255,2]
[421714166,1778053832000,-543.46188568,0.00012255,2]
[421714164,1778053832000,-543.46188568,0.00012255,2]
[421714167,1778053832000,-543.46188568,0.00012255,2]
[421714171,1778053832000,-543.46188568,0.00012255,2]
[421714170,1778053832000,-543.46188568,0.00012255,2]
[421714168,1778053832000,-543.46188568,0.00012255,2]
[421714165,1778053832000,-543.46188568,0.00012255,2]
[421714169,1778053832000,-543.46188568,0.00012255,2]
[421714173,1778053832000,-543.46188568,0.00012255,2]
[421714172,1778053832000,-543.46188568,0.00012255,2]
[421714174,1778053832000,-543.46188568,0.00012255,2]
[421714124,1778053832000,-500.0,0.00012255,2]
[421714163,1778053832000,-543.46188568,0.00012255,2]
[421714144,1778053832000,-500.0,0.00012255,2]
[421714156,1778053832000,-543.46188568,0.00012255,2]
[421714140,1778053832000,-500.0,0.00012255,2]
[421714116,1778053832000,-500.0,0.00012255,2]
[421714115,1778053832000,-500.0,0.00012255,2]
[421714118,1778053832000,-500.0,0.00012255,2]
[421714119,1778053832000,-500.0,0.00012255,2]
[421714121,1778053832000,-500.0,0.00012255,2]
[421714146,1778053832000,-500.0,0.00012255,2]
[421714122,1778053832000,-376.95085474,0.00012255,2]
[421714126,1778053832000,-500.0,0.00012255,2]
[421714128,1778053832000,-500.0,0.00012255,2]
[421714136,1778053832000,-500.0,0.00012255,2]
[421714135,1778053832000,-500.0,0.00012255,2]
[421714125,1778053832000,-500.0,0.00012255,2]
[421714131,1778053832000,-500.0,0.00012255,2]
[421714123,1778053832000,-500.0,0.00012255,2]
[421714127,1778053832000,-500.0,0.00012255,2]
[421714132,1778053832000,-500.0,0.00012255,2]
[421714145,1778053832000,-500.0,0.00012255,2]
[421714139,1778053832000,-500.0,0.00012255,2]
[421714138,1778053832000,-500.0,0.00012255,2]
[421714147,1778053832000,-500.0,0.00012255,2]
[421714148,1778053832000,-500.0,0.00012255,2]
[421714141,1778053832000,-500.0,0.00012255,2]
[421714137,1778053832000,-500.0,0.00012255,2]
[421714134,1778053832000,-500.0,0.00012255,2]
[421714130,1778053832000,-500.0,0.00012255,2]
[421714129,1778053832000,-500.0,0.00012255,2]
[421714133,1778053832000,-500.0,0.00012255,2]
[421714181,1778053833000,-543.46188568,0.00012255,2]
[421714185,1778053833000,-543.46188568,0.00012255,2]
[421714188,1778053833000,-543.46188568,0.00012255,2]
[421714187,1778053833000,-121.96919647,0.00012255,2]
[421714196,1778053833000,-543.46188571,0.00012255,2]
[421714186,1778053833000,-421.49268921,0.00012255,2]
[421714189,1778053833000,-543.46188568,0.00012255,2]
[421714182,1778053833000,-543.46188568,0.00012255,2]
[421714177,1778053833000,-543.46188568,0.00012255,2]
[421714178,1778053833000,-543.46188568,0.00012255,2]
[421714175,1778053833000,-543.46188568,0.00012255,2]
[421714179,1778053833000,-543.46188568,0.00012255,2]
[421714176,1778053833000,-543.46188568,0.00012255,2]
[421714183,1778053833000,-543.46188568,0.00012255,2]
[421714184,1778053833000,-543.46188568,0.00012255,2]
[421714191,1778053833000,-543.46188568,0.00012255,2]
[421714180,1778053833000,-543.46188568,0.00012255,2]
[421714190,1778053833000,-543.46188568,0.00012255,2]
[421714211,1778053833000,-4775.8559646,0.00012256,2]
[421714193,1778053833000,-543.46188568,0.00012255,2]
[421714195,1778053833000,-543.46188571,0.00012255,2]
[421714209,1778053833000,-770.68,0.00012256,2]
[421714210,1778053833000,-5189.91310141,0.00012256,2]
[421714207,1778053833000,-458.44747329,0.00012256,2]
[421714202,1778053833000,-6748.10723852,0.00012256,2]
[421714205,1778053833000,-1065.16227668,0.00012256,2]
[421714206,1778053833000,-2616.10127688,0.00012256,2]
[421714204,1778053833000,-6267.33691747,0.00012256,2]
[421714208,1778053833000,-574.81083747,0.00012256,2]
[421714201,1778053833000,-543.4618857,0.00012255,2]
[421714203,1778053833000,-388.8323745,0.00012256,2]
[421714194,1778053833000,-543.46188568,0.00012255,2]
[421714198,1778053833000,-543.46188571,0.00012255,2]
[421714192,1778053833000,-543.46188568,0.00012255,2]
[421714199,1778053833000,-543.46188571,0.00012255,2]
[421714200,1778053833000,-543.46188571,0.00012255,2]
[421714197,1778053833000,-543.46188571,0.00012255,2]
[421714217,1778053837000,-256.441215,0.00012156,2]
[421714266,1778053849000,-218.53,0.00012511,2]
[421714275,1778053849000,-269.33,0.00012815,2]
[421714272,1778053849000,-43887.1013089,0.00012713,2]
[421714270,1778053849000,-499.99,0.00012546,2]
[421714268,1778053849000,-9999.99,0.00012546,2]
[421714269,1778053849000,-150.99,0.00012546,2]
[421714267,1778053849000,-1027.43622372,0.00012545,3]
[421714264,1778053849000,-7542.2251874,0.0001248,2]
[421714278,1778053849000,-500.0,0.00012879,2]
[421714260,1778053849000,-9999.99,0.00012256,2]
[421714262,1778053849000,-1027.43622372,0.00012349,3]
[421714263,1778053849000,-269.33,0.00012478,2]
[421714258,1778053849000,-97464.55428937,0.00012256,2]
[421714259,1778053849000,-9999.99,0.00012256,2]
[421714261,1778053849000,-24999.99,0.00012256,2]
[421714257,1778053849000,-879.77229291,0.00012256,2]
[421714256,1778053849000,-1344.20996121,0.00012156,2]
[421714265,1778053849000,-1194.41,0.0001248,2]
[421714274,1778053849000,-2157.14243826,0.00012776,2]
[421714276,1778053849000,-1000.0,0.00012835,2]
[421714277,1778053849000,-182.61,0.00012857,2]
[421714271,1778053849000,-4999.99,0.00012546,2]
[421714293,1778053849000,-350.46458441,0.00013697,2]
[421714292,1778053849000,-500.0,0.00013697,2]
[421714289,1778053849000,-259.36054857,0.00013389,2]
[421714286,1778053849000,-1680.0,0.00013358,2]
[421714287,1778053849000,-155.84,0.00013367,2]
[421714284,1778053849000,-2236.95670848,0.00013324,2]
[421714288,1778053849000,-250.0,0.00013371,2]
[421714291,1778053849000,-500.0,0.00013697,2]
[421714281,1778053849000,-338.25085478,0.00013204,2]
[421714283,1778053849000,-200.0,0.00013324,2]
[421714282,1778053849000,-255.0,0.00013225,2]
[421714279,1778053849000,-439.61,0.00012987,2]
[421714290,1778053849000,-182.61,0.000135,2]
[421714280,1778053849000,-210.66506833,0.00013204,2]
[421714294,1778053849000,-187.24168302,0.00013697,2]
[421714273,1778053849000,-200.0,0.00012776,2]
[421714285,1778053849000,-420.0,0.00013329,2]
[421714332,1778053850000,-2000.0,0.00013834,2]
[421714333,1778053850000,-166.66,0.00013836,2]
[421714334,1778053850000,-200.0,0.00013846,2]
[421714328,1778053850000,-157.07,0.00013729,2]
[421714330,1778053850000,-1140.66556226,0.00013809,2]
[421714324,1778053850000,-166.66,0.00013699,2]
[421714325,1778053850000,-163.01,0.000137,2]
[421714327,1778053850000,-1708.4762646,0.00013715,2]
[421714326,1778053850000,-200.0,0.00013712,2]
[421714331,1778053850000,-4495.2,0.00013826,2]
[421714329,1778053850000,-888.14,0.00013789,2]
[421714337,1778053850000,-200.0,0.00013872,2]
[421714342,1778053850000,-155.84,0.00014102,2]
[421714338,1778053850000,-2319.72410669,0.00013872,2]
[421714339,1778053850000,-177.5,0.00013876,2]
[421714340,1778053850000,-166.66,0.00013973,2]
[421714341,1778053850000,-5773.37,0.00014003,2]
[421714347,1778053850000,-500.0,0.00014269,2]
[421714345,1778053850000,-166.66,0.00014247,2]
[421714346,1778053850000,-155.96123709,0.00014247,21]
[421714322,1778053850000,-500.0,0.00013698,2]
[421714343,1778053850000,-166.66,0.0001411,2]
[421714344,1778053850000,-182.61,0.00014143,2]
[421714348,1778053850000,-166.66,0.00014384,2]
[421714336,1778053850000,-204.23,0.00013858,2]
[421714323,1778053850000,-1039.77,0.00013698,2]
[421714313,1778053850000,-644.26,0.00013698,2]
[421714317,1778053850000,-504.36314332,0.00013698,2]
[421714303,1778053850000,-500.0,0.00013698,2]
[421714295,1778053850000,-500.0,0.00013697,2]
[421714296,1778053850000,-500.0,0.00013697,2]
[421714298,1778053850000,-500.0,0.00013697,2]
[421714302,1778053850000,-500.0,0.00013698,2]
[421714301,1778053850000,-500.0,0.00013698,2]
[421714300,1778053850000,-550.39095009,0.00013697,2]
[421714299,1778053850000,-500.0,0.00013697,2]
[421714297,1778053850000,-500.0,0.00013697,2]
[421714305,1778053850000,-500.0,0.00013698,2]
[421714304,1778053850000,-500.0,0.00013698,2]
[421714315,1778053850000,-644.26,0.00013698,2]
[421714307,1778053850000,-500.0,0.00013698,2]
[421714308,1778053850000,-500.0,0.00013698,2]
[421714306,1778053850000,-500.0,0.00013698,2]
[421714316,1778053850000,-500.0,0.00013698,2]
[421714311,1778053850000,-644.26,0.00013698,2]
[421714349,1778053850000,-200.0,0.0001442,2]
[421714314,1778053850000,-644.26,0.00013698,2]
[421714309,1778053850000,-644.26,0.00013698,2]
[421714310,1778053850000,-644.26,0.00013698,2]
[421714312,1778053850000,-644.26,0.00013698,2]
[421714318,1778053850000,-500.0,0.00013698,2]
[421714319,1778053850000,-500.0,0.00013698,2]
[421714320,1778053850000,-500.0,0.00013698,2]
[421714321,1778053850000,-500.0,0.00013698,2]
[421714350,1778053850000,-2405.55389864,0.0001442,2]
[421714335,1778053850000,-5438.41,0.00013846,2]
[421714356,1778053850000,-2494.55939289,0.00014968,2]
[421714383,1778053850000,-9999.99,0.00016116,2]
[421714382,1778053850000,-2682.57183977,0.00016064,2]
[421714385,1778053850000,-493.08830737,0.00016233,2]
[421714386,1778053850000,-302.54889419,0.00016276,2]
[421714384,1778053850000,-3292.0,0.00016164,2]
[421714387,1778053850000,-500.0,0.00016276,2]
[421714388,1778053850000,-500.0,0.00016276,2]
[421714391,1778053850000,-200.0,0.00016612,2]
[421714390,1778053850000,-1913.0,0.00016438,2]
[421714389,1778053850000,-1039.77,0.00016276,2]
[421714394,1778053850000,-166.629506,0.00016873,2]
[421714392,1778053850000,-2781.82699784,0.00016612,2]
[421714395,1778053850000,-200.0,0.0001716,2]
[421714396,1778053850000,-2884.75459676,0.0001716,2]
[421714404,1778053850000,-788.48,0.0001734,2]
[421714397,1778053850000,-808.1324666,0.00017206,2]
[421714401,1778053850000,-19813.1003095,0.00017217,2]
[421714402,1778053850000,-2000.0,0.00017293,2]
[421714403,1778053850000,-204.23,0.00017323,2]
[421714400,1778053850000,-881.67954,0.00017216,2]
[421714399,1778053850000,-542.982354,0.00017216,2]
[421714398,1778053850000,-5211.74089,0.00017216,2]
[421714406,1778053850000,-157.07,0.00017543,2]
[421714355,1778053850000,-200.0,0.00014968,2]
[421714405,1778053850000,-11203.623652,0.00017376,2]
[421714377,1778053850000,-204.23,0.00015591,2]
[421714380,1778053850000,-157.07,0.00016018,2]
[421714393,1778053850000,-157.07,0.0001678,2]
[421714379,1778053850000,-186.8185904,0.000159,2]
[421714357,1778053850000,-644.26,0.00014999,2]
[421714378,1778053850000,-150.0,0.000159,2]
[421714359,1778053850000,-644.26,0.00014999,2]
[421714358,1778053850000,-644.26,0.00014999,2]
[421714354,1778053850000,-500.0,0.00014967,2]
[421714360,1778053850000,-644.26,0.00014999,2]
[421714351,1778053850000,-157.07,0.00014492,2]
[421714352,1778053850000,-2351.0,0.00014694,2]
[421714362,1778053850000,-644.26,0.00014999,2]
[421714361,1778053850000,-644.26,0.00014999,2]
[421714372,1778053850000,-42083.51665513,0.00015292,2]
[421714364,1778053850000,-2283.70672818,0.00015,7]
[421714363,1778053850000,-644.26,0.00014999,2]
[421714353,1778053850000,-155.84,0.00014838,2]
[421714369,1778053850000,-265.98,0.000151,2]
[421714366,1778053850000,-500.0,0.0001507,2]
[421714371,1778053850000,-12005.00011211,0.00015289,2]
[421714367,1778053850000,-421.83,0.000151,2]
[421714368,1778053850000,-212.14,0.000151,2]
[421714365,1778053850000,-173.04,0.00015008,2]
[421714373,1778053850000,-200.0,0.00015516,2]
[421714376,1778053850000,-155.84,0.00015573,2]
[421714374,1778053850000,-2586.85809042,0.00015516,2]
[421714370,1778053850000,-157.07,0.00015255,2]
[421714375,1778053850000,-2000.0,0.00015563,2]
[421714381,1778053850000,-200.0,0.00016064,2]
[421714446,1778053851000,-1230.8333447,0.000184,2]
[421714444,1778053851000,-500.0,0.00018373,2]
[421714442,1778053851000,-500.0,0.00018373,2]
[421714445,1778053851000,-500.0,0.00018373,2]
[421714439,1778053851000,-500.0,0.00018373,2]
[421714447,1778053851000,-1913.0,0.0001841,2]
[421714441,1778053851000,-500.0,0.00018373,2]
[421714443,1778053851000,-501.50869273,0.00018373,2]
[421714433,1778053851000,-164.22619886,0.00018373,2]
[421714438,1778053851000,-267.02889892,0.00018373,2]
[421714449,1778053851000,-1230.8333447,0.000185,2]
[421714440,1778053851000,-500.0,0.00018373,2]
[421714454,1778053851000,-1000.0,0.00018921,2]
[421714450,1778053851000,-1500.0,0.00018668,2]
[421714452,1778053851000,-389.18946307,0.00018921,2]
[421714453,1778053851000,-1000.0,0.00018921,2]
[421714451,1778053851000,-1230.8333447,0.000187,2]
[421714461,1778053851000,-157.07,0.00019069,2]
[421714456,1778053851000,-1000.0,0.00018921,2]
[421714455,1778053851000,-1000.0,0.00018921,2]
[421714459,1778053851000,-2000.0,0.00019022,2]
[421714458,1778053851000,-500.0,0.00018921,2]
[421714457,1778053851000,-1000.0,0.00018921,2]
[421714460,1778053851000,-204.23,0.00019055,2]
[421714463,1778053851000,-3526.62618725,0.00019162,2]
[421714435,1778053851000,-500.0,0.00018373,2]
[421714448,1778053851000,-315.83,0.00018436,2]
[421714436,1778053851000,-431.73147682,0.00018373,2]
[421714416,1778053851000,-5000.0,0.0001773,2]
[421714437,1778053851000,-402.43164233,0.00018373,2]
[421714473,1778053851000,-607.0,0.00019208,2]
[421714414,1778053851000,-500.0,0.00017706,2]
[421714415,1778053851000,-2991.49051684,0.00017708,2]
[421714409,1778053851000,-500.0,0.00017573,2]
[421714410,1778053851000,-788.48,0.00017614,2]
[421714411,1778053851000,-160.0,0.00017706,2]
[421714407,1778053851000,-500.0,0.00017566,2]
[421714413,1778053851000,-207.86895535,0.00017706,2]
[421714408,1778053851000,-127199.5740431,0.00017567,2]
[421714412,1778053851000,-162.55277151,0.00017706,2]
[421714417,1778053851000,-4609.0,0.0001778,2]
[421714420,1778053851000,-1236.33016154,0.0001789,2]
[421714434,1778053851000,-211.89209251,0.00018373,2]
[421714419,1778053851000,-788.48,0.00017888,2]
[421714422,1778053851000,-336.131937,0.00017989,7]
[421714426,1778053851000,-788.48,0.00018162,2]
[421714421,1778053851000,-700.0,0.000179,6]
[421714425,1778053851000,-1000.0,0.00018121,2]
[421714424,1778053851000,-1230.8333447,0.00018,2]
[421714423,1778053851000,-1543.70818639,0.00018,2]
[421714427,1778053851000,-1230.8333447,0.000182,2]
[421714428,1778053851000,-157.07,0.00018306,2]
[421714430,1778053851000,-150.0,0.00018328,2]
[421714432,1778053851000,-89398.23,0.00018356,2]
[421714429,1778053851000,-12005.00011211,0.00018328,2]
[421714431,1778053851000,-42083.51665513,0.00018334,2]
[421714418,1778053851000,-500.0,0.00017876,2]
[421714462,1778053851000,-3471.34862741,0.00019089,2]
[421714500,1778053851000,-607.0,0.00019208,2]
[421714471,1778053851000,-607.0,0.00019208,2]
[421714488,1778053851000,-500.0,0.00019208,2]
[421714498,1778053851000,-607.0,0.00019208,2]
[421714501,1778053851000,-607.0,0.00019208,2]
[421714512,1778053851000,-1500.0,0.00019468,2]
[421714511,1778053851000,-1500.0,0.00019468,2]
[421714502,1778053851000,-622.01126023,0.00019208,2]
[421714504,1778053851000,-3526.62618725,0.00019233,2]
[421714508,1778053851000,-644.26,0.00019338,2]
[421714507,1778053851000,-3526.62618725,0.00019324,2]
[421714506,1778053851000,-3526.62618725,0.00019316,2]
[421714505,1778053851000,-888.14,0.00019304,2]
[421714509,1778053851000,-229.0,0.00019354,2]
[421714499,1778053851000,-607.0,0.00019208,2]
[421714503,1778053851000,-500.0,0.00019216,2]
[421714514,1778053851000,-1500.0,0.00019468,2]
[421714524,1778053851000,-1400.0,0.000199,7]
[421714513,1778053851000,-1500.0,0.00019468,2]
[421714517,1778053851000,-1788.0,0.00019558,2]
[421714523,1778053851000,-3471.34862741,0.00019849,2]
[421714515,1778053851000,-1461.74205325,0.00019468,2]
[421714516,1778053851000,-3526.62618725,0.00019511,2]
[421714518,1778053851000,-273.69632176,0.00019585,2]
[421714519,1778053851000,-500.0,0.00019674,2]
[421714520,1778053851000,-500.0,0.00019674,2]
[421714521,1778053851000,-1039.77,0.00019674,2]
[421714464,1778053851000,-500.0,0.00019178,2]
[421714510,1778053851000,-3471.34862741,0.00019456,2]
[421714497,1778053851000,-607.0,0.00019208,2]
[421714522,1778053851000,-157.07,0.00019831,2]
[421714491,1778053851000,-607.0,0.00019208,2]
[421714494,1778053851000,-607.0,0.00019208,2]
[421714468,1778053851000,-520.15111902,0.00019208,2]
[421714466,1778053851000,-500.0,0.00019178,2]
[421714465,1778053851000,-500.0,0.00019178,2]
[421714470,1778053851000,-607.0,0.00019208,2]
[421714472,1778053851000,-607.0,0.00019208,2]
[421714467,1778053851000,-500.0,0.00019208,2]
[421714474,1778053851000,-607.0,0.00019208,2]
[421714477,1778053851000,-150.0,0.00019208,2]
[421714478,1778053851000,-607.0,0.00019208,2]
[421714476,1778053851000,-150.0,0.00019208,2]
[421714486,1778053851000,-500.0,0.00019208,2]
[421714485,1778053851000,-607.0,0.00019208,2]
[421714469,1778053851000,-607.0,0.00019208,2]
[421714479,1778053851000,-150.0,0.00019208,2]
[421714493,1778053851000,-607.0,0.00019208,2]
[421714496,1778053851000,-607.0,0.00019208,2]
[421714495,1778053851000,-607.0,0.00019208,2]
[421714490,1778053851000,-466.12046251,0.00019208,2]
[421714475,1778053851000,-500.0,0.00019208,2]
[421714489,1778053851000,-607.0,0.00019208,2]
[421714492,1778053851000,-607.0,0.00019208,2]
[421714480,1778053851000,-607.0,0.00019208,2]
[421714484,1778053851000,-607.0,0.00019208,2]
[421714482,1778053851000,-224.8697139,0.00019208,2]
[421714483,1778053851000,-500.0,0.00019208,2]
[421714481,1778053851000,-500.0,0.00019208,2]
[421714487,1778053851000,-607.0,0.00019208,2]
[421714568,1778053852000,-371.0,0.00021,2]